Cogmind - Beta 14 @@@ ROGUE MODE // 2024.08.12 @ 11:36:42 Player: Minty Result: Destroyed by D-53 Grenadier with Mini Grenade Launcher Performance ------------- Evolutions (0) 0 Regions Visited (2) 400 Robots Destroyed (7) 35 Value Destroyed (127) 127 Prototype IDs (0) 0 Alien Tech Used (0) 0 Bonus (0) 0 TOTAL SCORE: 562 Bonus ------- None Cogmind --------- Core Integrity 0/250 Matter 300/300 Energy 100/100 System Corruption 0% Temperature Cool (0) Movement Rolling (160) Ox4 Location -10/Mines Parts ------- > --- POWER (1) -------- (None) > --- PROPULSION (2) --- Compact Wheel > --- UTILITY (2) ------ Huge Storage Unit > --- WEAPON (2) ------- (None) > --- INVENTORY (25) --- Ion Engine Ion Engine Light Ion Engine Light Treads Light Treads Light Treads Wheel Wheel Small Storage Unit Visual Processing Unit Sensor Array Signal Interpreter Terrain Scanner Light Assault Rifle Peak State ------------ > --- POWER ------------ Light Ion Engine > --- PROPULSION ------- Wheel Compact Wheel > --- UTILITY ---------- Huge Storage Unit Terrain Scanner > --- WEAPON ----------- Light Assault Rifle Light Assault Rifle > --- INVENTORY -------- Ion Engine Light Treads Light Treads Light Treads Wheel Small Storage Unit Visual Processing Unit Sensor Array Signal Interpreter [Rating: 8] Favorites ----------- Power Light Ion Engine Engine Light Ion Engine Propulsion Wheel Leg Aluminum Leg Wheel Wheel Utility Terrain Scanner Device Terrain Scanner Storage Huge Storage Unit Weapon Light Assault Rifle Ballistic Gun Light Assault Rifle Build | -11 -10 -10 ------- Run | Yrd Mat Min Slots Evolved . | . . . Power . | . . . Propulsion . | . . . Utility . | . . . Weapon . | . . . Parts Attached 7 | . 7 . Power 1 | . 1 . Engine 1 | . 1 . Core . | . . . Reactor . | . . . Propulsion 4 | . 4 . Treads . | . . . Leg . | . . . Wheel 4 | . 4 . Hover . | . . . Flight . | . . . Utility 2 | . 2 . Device 1 | . 1 . Storage 1 | . 1 . Processor . | . . . Hackware . | . . . Protection . | . . . Artifact . | . . . Weapon . | . . . Energy Gun . | . . . Energy Cannon . | . . . Ballistic Gun . | . . . Ballistic Cannon . | . . . Launcher . | . . . Special Weapon . | . . . Impact Weapon . | . . . Slashing Weapon . | . . . Piercing Weapon . | . . . Special Melee Weapon . | . . . Unidentified Prototypes . | . . . Parts Lost 2 | . . 2 Power . | . . . Propulsion 1 | . . 1 Utility . | . . . Weapon 1 | . . 1 Highest Loss Streak 2 | . . 2 To Critical Strikes . | . . . Average Slot Usage (%) 97 | . 98 92 Engine 13 | . 14 12 Leg 1 | . 2 . Wheel 25 | . 25 28 Device 13 | . 13 12 Storage 14 | . 14 14 Ballistic Gun 27 | . 28 24 Peak Build Rating 8 | . 8 8 Average Rating 7 | . 7 7 On Entrance 6 | 6 6 8 Naked Turns . | . . . Heaviest Build 88 | 10 88 88 Greatest Support 26 | 20 26 26 Greatest Overweight (x) 3 | . 3 3 Average Overweight (x) 2 | . 2 3 Largest Inventory Capacity 25 | . 25 25 Average Capacity 23 | . 22 25 Most Carried 14 | . 11 14 Average Carried 8 | . 7 11 Final Capacity 25 | 8 25 25 Final Carried 14 | 6 11 14 Class Distribution -------------------- 100% | Mutant Dominant Class ---------------- Mutant | -10/Materials Mutant | -10/Mines Resources | -11 -10 -10 ----------- Run | Yrd Mat Min Matter Collected 309 | 200 80 29 Remotely . | . . . Salvage Created 168 | . 168 . Parts 20 | . 20 . Haulers Intercepted . | . . . Recyclers Shooed . | . . . Parts Field Recycled . | . . . Retrieved Matter . | . . . Parts Self-Destructed . | . . . Prevented . | . . . Kills | -11 -10 -10 ------- Run | Yrd Mat Min Combat Hostiles Destroyed 5 | . 5 . Guns 5 | . 5 . Classes Destroyed 4 | . 4 . Mechanic 1 | . 1 . Watcher 1 | . 1 . Swarmer 3 | . 3 . Grunt 2 | . 2 . Best Kill Streak 3 | . 3 . Combat Bots Only 3 | . 3 . Max Kills in Single Turn 1 | . 1 . Gunslinging . | . . . Exploded . | . . . Melee . | . . . Uniques/NPCs Destroyed . | . . . Combat | -11 -10 -10 -------- Run | Yrd Mat Min Hostile Shots Fired 27 | . 15 12 Missed 5 | . 4 1 Damage Taken 552 | . 111 441 Core 265 | . 31 234 Absorbed by Shields . | . . . Core Remaining (%) 100 | 100 . . Volleys Fired 22 | . 22 . Largest 2 | . 2 . Hottest 40 | . 40 . Shots Fired 44 | . 44 . Gun 44 | . 44 . Cannon . | . . . Launcher . | . . . Special . | . . . Kinetic 44 | . 44 . Thermal . | . . . Explosive . | . . . Electromagnetic . | . . . Robot Hit Streak 6 | . 6 . Robot Miss Streak 2 | . 2 . Penetration Max . | . . . Secondary Targets . | . . . Shots Hit Robots 27 | . 27 . Core Hits 13 | . 13 . Critical Kills . | . . . Critical Parts Destroyed . | . . . Critical Strikes . | . . . Melee Attacks . | . . . Impact . | . . . Slashing . | . . . Piercing . | . . . Sneak Attacks . | . . . Combat Hostiles . | . . . Follow-up Attacks . | . . . Damage Inflicted 239 | . 239 . Guns 239 | . 239 . Cannons . | . . . Explosions . | . . . Melee . | . . . Ramming . | . . . Kinetic 239 | . 239 . Thermal . | . . . Explosive . | . . . Electromagnetic . | . . . Impact . | . . . Slashing . | . . . Piercing . | . . . Highest Corruption . | . . . Average Corruption . | . . . Corruption Purged . | . . . Corruption Blocked . | . . . Overload Shots . | . . . Overflow Damage . | . . . Projectiles . | . . . Explosions . | . . . Melee . | . . . Knockbacks . | . . . Impact . | . . . Kinetic . | . . . Secondary . | . . . Self-Inflicted Damage . | . . . Shots . | . . . Rammed . | . . . Targets Rammed . | . . . Kicked . | . . . Crushed . | . . . Highest Temperature 18 | . 18 . Average Temperature 9 | . 9 . Received Heat Transfer 36 | . 36 . Siege Activations . | . . . Robots Corrupted . | . . . Combat Hostiles . | . . . Parts Fried . | . . . Impact Corruptions . | . . . Robots Melted . | . . . Combat Hostiles . | . . . Parts Melted . | . . . Heat Transferred . | . . . Parts Sabotaged . | . . . Parts Stolen . | . . . Parts Stripped . | . . . Power Chain Reactions . | . . . Alert | -11 -10 -10 ------- Run | Yrd Mat Min Peak Influence 172 | . 172 66 Initial 66 | . . 66 Average 85 | . 90 64 Maximum Alert Level . | . . . Low Security (%) 100 | . 100 100 Level 1 . | . . . Level 2 . | . . . Level 3 . | . . . Level 4 . | . . . Level 5 . | . . . High Security . | . . . Max Security . | . . . Squads Dispatched 2 | . 2 . Investigation 1 | . 1 . Extermination . | . . . Reinforcement 1 | . 1 . Assault . | . . . Garrison . | . . . Intercept . | . . . Searches Triggered . | . . . Construction Impeded . | . . . Haulers Reinforced . | . . . Active Scanning Responses . | . . . Cargo Convoy Interrupts . | . . . Stealth | -11 -10 -10 --------- Run | Yrd Mat Min Distress Signals 4 | . 4 . Communications Jammed . | . . . Distress Signals . | . . . Times Spotted 12 | . 10 2 Peak Tracking Total 4 | . 4 2 Tactical Retreats 1 | . 1 . Traps | -11 -10 -10 ------- Run | Yrd Mat Min Traps Triggered 1 | . 1 . Indirectly . | . . . Trap Hack Attempts . | . . . Triggered . | . . . Disarmed . | . . . Reprogrammed . | . . . Reused . | . . . Traps Extracted . | . . . Installed . | . . . Triggered . | . . . Machines | -11 -10 -10 ---------- Run | Yrd Mat Min Machines Disabled . | . . . Max in Single Turn . | . . . Machines Repaired . | . . . Machines Dismantled . | . . . Machines Sabotaged . | . . . Overloaded Fab Kills . | . . . Hacking | -11 -10 -10 --------- Run | Yrd Mat Min Machines Accessed 2 | . 2 . Terminals 1 | . 1 . Fabricators . | . . . Repair Stations 1 | . 1 . Recycling Units . | . . . Scanalyzers . | . . . Garrison Access . | . . . Total Hacks 5 | . 5 . Successful . | . . . Failed 5 | . 5 . Catastrophic . | . . . Database Lockouts . | . . . Manual 2 | . 2 . Terminals 3 | . 3 . Fabricators . | . . . Repair Stations 2 | . 2 . Recycling Units . | . . . Scanalyzers . | . . . Garrison Access . | . . . Terminal Hacks . | . . . Fabricator Hacks . | . . . Repair Station Hacks . | . . . Recycling Unit Hacks . | . . . Scanalyzer . | . . . Garrison Access Hacks . | . . . Unauthorized Hacks . | . . . Terminals . | . . . Fabricators . | . . . Repair Stations . | . . . Recycling Units . | . . . Scanalyzers . | . . . Garrison Access . | . . . Data Cores Recovered . | . . . Used . | . . . Hacking Detections 2 | . 2 . Full Trace Events 1 | . 1 . Feedback Events . | . . . Feedback Blocked . | . . . Robot Schematics Acquired . | . . . Robots Built . | . . . Authchips . | . . . Time . | . . . Total Robot Build Rating . | . . . Part Schematics Acquired . | . . . Parts Built . | . . . Authchips . | . . . Time . | . . . Total Part Build Rating . | . . . Parts Repaired . | . . . Time . | . . . Parts Recycled . | . . . Recycled Matter . | . . . Retrieved Matter . | . . . Retrieved Components . | . . . Parts Scanalyzed . | . . . Part Schematics Acquired . | . . . Parts Damaged . | . . . Bothacking | -11 -10 -10 ------------ Run | Yrd Mat Min Used RIF Installer . | . . . Robots Hacked . | . . . Non-combat . | . . . Combat . | . . . Robot Hacks Applied . | . . . Relay Couplers Released . | . . . Fabnet Peak Effective % . | . . . Robots Rewired . | . . . Allies Hacked . | . . . Hacks Repelled . | . . . Allies | -11 -10 -10 -------- Run | Yrd Mat Min Total Allies . | . . . Largest Group . | . . . Highest-Rated Group . | . . . Highest-Rated Ally . | . . . Total Orders . | . . . Ally Attacks . | . . . Total Damage . | . . . Kills . | . . . Allies Corrupted . | . . . Allies Melted . | . . . Intel | -11 -10 -10 ------- Run | Yrd Mat Min Robot Analysis Total . | . . . Derelict Logs Recovered . | . . . Drone Launches . | . . . Drone Recoveries . | . . . Exploration | -11 -10 -10 ------------- Run | Yrd Mat Min Turns Passed 467 | . 384 83 Spaces Moved 294 | 1 233 60 Core . | . . . Treads . | . . . Legs 29 | 1 28 . Wheels 265 | . 205 60 Hover . | . . . Flight . | . . . Fastest Speed 90 | 120 90 135 Average Speed 132 | 120 132 135 Slowest Speed 135 | 120 135 135 Overloaded Moves . | . . . Propulsion Burnouts . | . . . Robots Hopped . | . . . Cave-ins Triggered . | . . . Exploration Rate (%) 18 | 2 35 18 Regions Visited 2 Branch Regions 1 Pre-discovered Areas . | . . . Known Exits Taken . | . . . Unknown Exits Taken 2 | 1 1 . Scrap Searched . | . . . Spaces Dug . | . . . Terrain Destroyed . | . . . Melee . | . . . Projectile . | . . . AOE . | . . . Terrain Rammed . | . . . Walls Destroyed . | . . . Machines Disabled . | . . . Actions | -11 -10 -10 --------- Run | Yrd Mat Min Total 337 | . 274 63 Wait . | . . . Move 292 | . 232 60 Hop . | . . . Pick Up 6 | . 6 . Fast Attach 2 | . 2 . Attach 2 | . 2 . Detach 6 | . 3 3 Swap 3 | . 3 . Drop 4 | . 4 . Fire 22 | . 22 . Melee . | . . . Ram . | . . . Kick . | . . . Crush . | . . . Escape Stasis . | . . . Rewire . | . . . Trap . | . . . Miscellaneous . | . . . Route ------- -11/Scrapyard -10/Materials -10/Mines History --------- Turn | Location | Event 1 | -11/Scrapyard | Discovered new exit (range 0) 1 | -11/Scrapyard | Entered Materials 167 | -10/Materials | Discovered new exit (range 15) 304 | -10/Materials | Build established: Mutant 385 | -10/Materials | Entered Mines 386 | -10/Mines | Assembled infested the area 436 | -10/Mines | Met a Derelict bent on vengeance 460 | -10/Mines | Core integrity fell below 50% 468 | -10/Mines | Destroyed by D-53 Grenadier with Mini Grenade Launcher Last Messages --------------- 00235_ K-01 Serf collects debris. 00238_ Acquired 20 matter. 00239_ K-01 Serf collects debris. 00318_ Acquired Wheel. 00348_ K-01 Serf cleans the Matter Pump. 00383_ R-06 Scavenger collects Hover Unit. LOCATION=UNKNOWN GOAL=ESCAPE Something is scanning the area. 00386_ ALERT: Infestation in the mines, dispatching Demolisher response squad. 00398_ HV Slug penetrates Wall. 00432_ C-30 ARC bursts open, deploying its payload. 00432_ D-53 Grenadier unfolds itself. 00447_ T-07 Excavator destroyed. 00457_ Lgt. Assault Rifle destroyed. 00465_ Acquired 10 matter. 00466_ The unstable cave ceiling collapses. 00467_ Acquired 19 matter. 00468_ Wheel destroyed. Map ----- +----------------------------------------------------+ | | | | | | | | | ???????????????????????????????????? | | ???????????????#####???????????????? | | ??????????????## ##??????????????? | | ?????????????## ###########????? | | ??????#??????# ???? | | ?????????????# ???? | | ?????????????## ######??????????? | | ??????????????### ##???????????????? | | ????????????????# #????????????????? | | ????????????????# #????????????????? | | ????????????????# ######???????????? | | ?????????????#### #?#??????????? | | ???####?????# #;### #????????????? | | ??## ##?## k#??# ###??????????? | | ??? ## ! ????# ##?????????? | | ???? =%!????### #?????????#? | | ????? % *???????# #??????????? | | ?????? #???????# #??????????? | | ???????# % ##??????# #??????????? | | ???????## % ###???## #??????????? | | ???????# * ; #????# #??????????? | | ?????### @ ##?????# #??????????? | | ?????# % ##????# #??????????? | | ????## #?#### ##?????????? | | ???## # #" #??????????? | | ???# # ##?#%## #??????????? | | ??## #;#??#"## #??????????? | | ??# ## #?# ## #??????????? | | ??# #?# ## ## #??????????? | | ??# #??# # ## ??????????? | | ??## dd #???## ####???? ?????? | | ???## ##???# #?????????????? | | ????## #????# #?????????????? | | ????## = #?#?## ##????????????? | | ???## #??## ##???????????? | | ???# ### #???????????? | | ???# #????????????? | | ???## #### #?#??????????? | | ????### #???# #???????????? | | ??????# # ####???#### ##???????????? | | ??????# ###????????????????????????? | | ??????# ???????????????????????????? | | ??????##????#??????????????????????? | | ?????????????????##????????????????? | | ???????????????????????????????????? | | ????????????????????? ?????????????? | +----------------------------------------------------+ Best States ------------- Heat Dissipation 25 Energy Generation 10 Energy Capacity 250 Matter Stores 300 Matter Capacity 300 Sight Range 16 Terrain Scan Range 14 Terrain Scan Density 10 Evasion (%) 55 Item Schematics ----------------- None Robot Schematics ------------------ None Fabricated ------------ Nothing Alien Tech Used ----------------- None Achievements -------------- None Challenges ------------ None Game ------ Seed PhaseAblativePurifier Manual? 0 Play Time 00:02:56 Cumulative 855.7 hours Start 2024.08.12 @ 11:34:24 End 2024.08.12 @ 11:36:42 Sessions 1 Manual Loads 0 Difficulty Rogue Special Mode None Game No. 1025 Rogue 746 Adventurer 124 Explorer 155 Win Type - Total 35 Types 27/0/6/1/0/0/0/1/0 Lore% 74 Gallery% 89 Achievement% 78 Wizard Run 0 Options --------- Layout 0 ASCII 0 Keyboard 1 Movement Numpad Keybinds 0 Fullscreen 2 Font 18/Smallcaps Map View 76x50 Zoom Use 0% Tactical HUD 1 Map Filters NONE Filters NONE Steam 1 RUN: 09b72a85-222c-4901-aae6-9e6c7512a790